Cogmind - Beta 16 @@@ ROGUE MODE // 2025.12.21 @ 11:57:08 Player: h76 Result: Destroyed by H-55 Commando with Gauss Rifle Performance ------------- Evolutions (3) 1500 Regions Visited (5) 1000 Robots Destroyed (62) 310 Value Destroyed (1680) 1680 Prototype IDs (4) 80 Alien Tech Used (0) 0 Bonus (500) 500 TOTAL SCORE: 5070 Bonus ------- Entered DSFs 500 Cogmind --------- Core Integrity 0/700 Matter 5/300 Energy 100/100 System Corruption 0% Temperature Cool (0) Movement Core (1350) Ox26 Location -7/DSF Parts ------- > --- POWER (2) -------- (None) > --- PROPULSION (4) --- (None) > --- UTILITY (4) ------ Huge Storage Unit System Shield > --- WEAPON (3) ------- Mini Grenade Launcher > --- INVENTORY (25) --- Cooled Ion Engine Improved Deuterium Engine High-capacity Battery (250) Compact Matter Pod (0) Beam Rifle Subdweller Beam Cannon High-powered Shotgun Mini Grenade Launcher Subdweller Shrapnel Launcher Peak State ------------ > --- POWER ------------ Improved Deuterium Engine Improved Deuterium Engine > --- PROPULSION ------- Wheel Wheel Wheel Wheel > --- UTILITY ---------- Huge Storage Unit Improved Light Armor Plating Hacking Suite System Shield > --- WEAPON ----------- Heavy Assault Rifle High-powered Shotgun Rocket Launcher > --- INVENTORY -------- Cooled Ion Engine Improved Deuterium Engine Compact Matter Pod Beam Rifle Subdweller Beam Cannon Heavy Assault Rifle Gauss Rifle Mini Grenade Launcher Mini Grenade Launcher Mini Grenade Launcher Mini Grenade Launcher Subdweller Shrapnel Launcher [Rating: 32] Favorites ----------- Power Improved Deuterium Engine Engine Improved Deuterium Engine Propulsion Wheel Treads Light Treads Leg Carbon-fiber Leg Wheel Wheel Hover Unit Aerolev Unit Utility Hacking Suite Device Thermal Generator Storage Huge Storage Unit Hackware Hacking Suite Protection Scrap Shield Weapon Particle Gun Energy Gun Particle Gun Energy Cannon Subdweller Beam Cannon Ballistic Gun Heavy Assault Rifle Launcher Subdweller Shrapnel Launcher Build | -11 -10 -10 -8 -7 -7 ------- Run | Yrd Mat Sub Mat Fac DSF Slots Evolved 6 | . . . 4 2 . Power 1 | . . . 1 . . Propulsion 2 | . . . 1 1 . Utility 2 | . . . 2 . . Weapon 1 | . . . . 1 . Parts Attached 66 | 7 12 10 30 2 5 Power 10 | 1 2 2 5 . . Engine 10 | 1 2 2 5 . . Core . | . . . . . . Reactor . | . . . . . . Propulsion 17 | 2 2 4 8 1 . Treads 2 | 2 . . . . . Leg 2 | . . 2 . . . Wheel 12 | . 2 2 7 1 . Hover 1 | . . . 1 . . Flight . | . . . . . . Utility 16 | 2 2 1 10 1 . Device 5 | 1 1 . 3 . . Storage 5 | 1 1 . 3 . . Processor . | . . . . . . Hackware 2 | . . . 1 1 . Protection 4 | . . 1 3 . . Artifact . | . . . . . . Weapon 23 | 2 6 3 7 . 5 Energy Gun 10 | 1 3 2 4 . . Energy Cannon 3 | . 3 . . . . Ballistic Gun 5 | 1 . . 2 . 2 Ballistic Cannon . | . . . . . . Launcher 5 | . . 1 1 . 3 Special Weapon . | . . . . . . Impact Weapon . | . . . . . . Slashing Weapon . | . . . . . . Piercing Weapon . | . . . . . . Special Melee Weapon . | . . . . . . Unidentified Prototypes 4 | . . . 4 . . Parts Lost 23 | . 2 . 7 . 14 Power 4 | . 1 . 1 . 2 Propulsion 6 | . 1 . 1 . 4 Utility 6 | . . . 4 . 2 Weapon 7 | . . . 1 . 6 Highest Loss Streak 14 | . 1 . 2 . 14 To Critical Strikes . | . . . . . . Average Backups 7 | 1 5 4 10 11 11 Power . | 1 . . 1 2 2 Propulsion . | . . . . . . Utility 2 | . 2 3 2 1 1 Weapon 4 | . 2 1 7 8 7 Tool/Special . | . . . . . . Unused Backups 8 | . 2 2 1 . 3 Power 1 | . . . . . 1 Propulsion 1 | . . . 1 . . Utility 3 | . . 2 . . 1 Weapon 3 | . 2 . . . 1 Tool/Special . | . . . . . . Average Slot Usage (%) 84 | . 92 84 81 95 60 Engine 14 | . 14 14 16 15 7 Treads 6 | . 21 . . . . Wheel 14 | . . 25 17 30 13 Device 6 | . 14 . 5 . . Storage 8 | . 14 . 8 7 7 Hackware 4 | . . . 7 11 11 Protection 6 | . . 13 8 7 2 Energy Gun 9 | . 14 6 10 . . Energy Cannon 6 | . 11 14 . . . Ballistic Gun 3 | . . . 5 15 8 Launcher 2 | . . 6 1 6 6 Peak Build Rating 32 | 9 12 18 28 32 32 Average Rating 18 | 4 10 13 24 30 19 On Entrance 15 | . 9 10 15 26 32 Avg Prop Armor Cover (%) 7 | . 30 . 3 . . Naked Turns . | . . . . . . Heaviest Build 124 | 14 38 39 124 113 113 Greatest Support 40 | 40 40 40 40 40 40 Greatest Overweight (x) 37 | . 3 11 37 2 31 Average Overweight (x) 1 | . . . 3 2 5 Largest Inventory Capacity 25 | 8 15 15 25 25 25 Average Capacity 14 | 7 10 5 20 25 25 Most Carried 17 | 5 10 12 17 13 13 Average Carried 8 | 1 5 4 10 11 10 Final Capacity 25 | 8 15 5 25 25 25 Final Carried 14 | 2 8 5 14 12 9 Class Distribution -------------------- 46% | Mutant 34% | Scavenger-Mutant 15% | Subdweller-Mutant Dominant Class ---------------- Mutant | -10/Materials Subdweller-Mutant | -10/Subcaves Scavenger-Mutant | -8/Materials Hacker-Tank | -7/Factory Hacker-Mutant | -7/DSF Resources | -11 -10 -10 -8 -7 -7 ----------- Run | Yrd Mat Sub Mat Fac DSF Matter Collected 1156 | 234 249 215 457 . 1 Remotely . | . . . . . . Salvage Created 1859 | 78 467 175 1046 . 93 Parts 132 | 4 30 15 72 . 11 Haulers Intercepted 3 | . . . 3 . . Recyclers Shooed 1 | . 1 . . . . Parts Field Recycled . | . . . . . . Retrieved Matter . | . . . . . . Parts Self-Destructed 16 | . . 16 . . . Prevented . | . . . . . . Parts Restored . | . . . . . . Kills | -11 -10 -10 -8 -7 -7 ------- Run | Yrd Mat Sub Mat Fac DSF Combat Hostiles Destroyed 43 | . 14 8 19 . 2 Guns 17 | . 7 1 8 . 1 Cannons 10 | . 7 2 1 . . AOE 15 | . . 5 9 . 1 Classes Destroyed 16 | 2 5 1 6 . 2 Worker 3 | . 1 . 2 . . Builder 4 | . . . 4 . . Tunneler 1 | 1 . . . . . Hauler 3 | . . . 3 . . Recycler 1 | 1 . . . . . Mechanic 1 | . . . 1 . . Operator 1 | . . . 1 . . Turret 2 | . . 2 . . . Watcher 3 | . 2 . 1 . . Swarmer 14 | . 6 5 3 . . Grunt 18 | . 7 . 11 . . Sentry 4 | . . . 4 . . Specialist 1 | . . . . . 1 Hunter 1 | . . . 1 . . Heavy 1 | . . . . . 1 Subdweller 4 | . 1 3 . . . Best Kill Streak 9 | 2 8 4 9 . 1 Combat Bots Only 6 | . 6 4 6 . 1 Max Kills in Single Turn 4 | 1 2 4 3 . 1 Gunslinging 1 | . 1 . . . . Exploded 4 | . . 4 2 . 1 Melee . | . . . . . . Uniques/NPCs Destroyed . | . . . . . . Combat | -11 -10 -10 -8 -7 -7 -------- Run | Yrd Mat Sub Mat Fac DSF Hostile Shots Fired 415 | . 99 71 132 . 113 Missed 123 | . 31 28 36 . 28 Hits 292 | . 68 43 96 . 85 Projectile 292 | . 68 43 96 . 85 Critical Strikes 6 | . . 1 3 . 2 Damage Taken 4712 | . 745 642 1412 . 1913 Core 1138 | . 127 118 185 . 708 Absorbed by Shields 47 | . . . . . 47 Regen/Repaired (Parts) 64 | . . . 64 . . Core Remaining (%) 56 | 100 . 2 66 . . Volleys Fired 141 | 2 43 16 62 . 18 Largest 2 | 2 2 2 2 . 2 Hottest 148 | 70 136 148 120 . 56 Shots Fired 248 | 4 73 32 118 . 21 Gun 182 | 4 48 10 101 . 19 Cannon 47 | . 25 18 4 . . Launcher 19 | . . 4 13 . 2 Special . | . . . . . . Kinetic 67 | 2 . 4 42 . 19 Thermal 154 | 2 73 18 61 . . Explosive 6 | . . . 4 . 2 Electromagnetic 21 | . . 10 11 . . Robot Hit Streak 9 | 3 7 8 7 . 9 Robot Miss Streak 6 | . 6 2 5 . 4 Penetration Max 1 | . . . . . 1 Secondary Targets 4 | . 3 . 1 . . Max Gunslinging Chain 1 | . 1 . 1 . . Shots Hit Robots 148 | 3 39 21 72 . 13 Core Hits 97 | 3 20 17 47 . 10 Critical Kills . | . . . . . . Critical Parts Destroyed . | . . . . . . Critical Strikes 3 | . 1 . 2 . . Burn 3 | . 1 . 2 . . Melee Attacks . | . . . . . . Impact . | . . . . . . Slashing . | . . . . . . Piercing . | . . . . . . Sneak Attacks . | . . . . . . Combat Hostiles . | . . . . . . Follow-up Attacks . | . . . . . . Damage Inflicted 4653 | 31 782 871 2554 . 415 Guns 1888 | 31 374 151 1113 . 219 Cannons 757 | . 406 296 55 . . Explosions 2006 | . . 424 1386 . 196 Melee . | . . . . . . Ramming 2 | . 2 . . . . Kinetic 2087 | 6 . 424 1438 . 219 Thermal 1737 | 25 780 296 636 . . Explosive 490 | . . . 294 . 196 Electromagnetic 337 | . . 151 186 . . Impact . | . . . . . . Slashing . | . . . . . . Piercing . | . . . . . . Highest Corruption . | . . . . . . Average Corruption . | . . . . . . Corruption Purged . | . . . . . . Corruption Blocked . | . . . . . . Overload Shots . | . . . . . . Overflow Damage 91 | . . 42 49 . . Projectiles 13 | . . 13 . . . Explosions 78 | . . 29 49 . . Melee . | . . . . . . Knockbacks . | . . . . . . Impact . | . . . . . . Kinetic . | . . . . . . Secondary . | . . . . . . Self-Inflicted Damage 115 | . . 48 67 . . Shots 3 | . . 1 2 . . Rammed 3 | . 3 . . . . Targets Rammed 3 | . 3 . . . . Kicked . | . . . . . . Crushed . | . . . . . . Highest Temperature 575 | 30 506 69 575 . 1 Average Temperature 141 | 18 189 18 125 . 1 Received Heat Transfer 1038 | . 270 147 387 . 234 Effects 14 | . 7 . 7 . . Shutdowns 5 | . 3 . 2 . . Energy Bleed 2 | . 2 . . . . Interference 1 | . 1 . . . . Matter Decay 2 | . . . 2 . . Short Circuit 4 | . 1 . 3 . . Siege Activations . | . . . . . . Martial Activations . | . . . . . . Shielding Activations . | . . . . . . Robots Disrupted . | . . . . . . Combat Hostiles . | . . . . . . Robots Corrupted . | . . . . . . Combat Hostiles . | . . . . . . Parts Fried . | . . . . . . Impact Corruptions . | . . . . . . Robots Melted 1 | . . . 1 . . Combat Hostiles 1 | . . . 1 . . Parts Melted 12 | 1 6 1 4 . . Heat Transferred 3737 | 74 1702 407 1554 . . Parts Sabotaged . | . . . . . . Parts Stolen . | . . . . . . Parts Stripped . | . . . . . . Power Chain Reactions . | . . . . . . Alert | -11 -10 -10 -8 -7 -7 ------- Run | Yrd Mat Sub Mat Fac DSF Maximum Alert Level 1 | . . . 1 . . Low Security (%) 64 | 100 100 . 36 100 100 Level 1 35 | . . . 63 . . Level 2 . | . . . . . . Level 3 . | . . . . . . Level 4 . | . . . . . . Level 5 . | . . . . . . High Security . | . . . . . . Max Security . | . . . . . . Peak Influence 302 | 10 137 . 302 94 56 Initial 94 | . . . 49 94 51 Average 128 | . 15 . 213 84 22 Influence Increases 1389 | 10 332 240 752 . 55 Destroy 0b10 Robot/C 820 | . 260 140 380 . 40 Destroy 0b10 Robot/NC 85 | 10 15 . 60 . . Destroy Leader 172 | . 54 10 98 . 10 Successful Hack 4 | . 2 . 2 . . Disable Machine 90 | . . . 90 . . Destroy Structure 128 | . 1 . 122 . 5 Lose Combat Pursuer 90 | . . 90 . . . Influence Decreases 1389 | 10 332 144 639 135 129 Entered New Map 185 | . . . 47 115 23 Time Decay 881 | 10 185 144 522 20 . Lost Part 196 | . 20 . 70 . 106 Purge Threat 127 | . 127 . . . . Squads Dispatched 6 | . 2 . 2 . 2 Investigation 2 | . 2 . . . . Extermination . | . . . . . . Reinforcement 4 | . . . 2 . 2 Assault . | . . . . . . Garrison . | . . . . . . Intercept . | . . . . . . Searches Triggered . | . . . . . . Construction Impeded . | . . . . . . Haulers Reinforced . | . . . . . . Active Scanning Responses . | . . . . . . Cargo Convoy Interrupts . | . . . . . . Stealth | -11 -10 -10 -8 -7 -7 --------- Run | Yrd Mat Sub Mat Fac DSF Distress Signals 1 | . 1 . . . . Communications Jammed . | . . . . . . Distress Signals . | . . . . . . Times Spotted 76 | . 18 27 27 . 4 Peak Tracking Total 7 | . 7 6 4 . 3 Tactical Retreats 2 | . . 2 . . . Traps | -11 -10 -10 -8 -7 -7 ------- Run | Yrd Mat Sub Mat Fac DSF Traps Triggered 2 | . 1 . . . 1 Indirectly . | . . . . . . Trap Hack Attempts . | . . . . . . Triggered . | . . . . . . Disarmed . | . . . . . . Reprogrammed . | . . . . . . Reused . | . . . . . . Traps Extracted . | . . . . . . Installed . | . . . . . . Triggered . | . . . . . . Machines | -11 -10 -10 -8 -7 -7 ---------- Run | Yrd Mat Sub Mat Fac DSF Machines Disabled 8 | . . 2 6 . . Max in Single Turn 1 | . . 1 1 . . Machines Repaired . | . . . . . . Machines Dismantled . | . . . . . . Machines Sabotaged . | . . . . . . Overloaded Fab Kills . | . . . . . . Hacking | -11 -10 -10 -8 -7 -7 --------- Run | Yrd Mat Sub Mat Fac DSF Machines Accessed 9 | . 4 . 4 1 . Terminals 6 | . 3 . 2 1 . Fabricators . | . . . . . . Repair Stations 1 | . . . 1 . . Recycling Units 2 | . 1 . 1 . . Scanalyzers . | . . . . . . Garrison Access . | . . . . . . Total Hacks 18 | . 10 . 7 1 . Successful 10 | . 5 . 4 1 . Failed 8 | . 5 . 3 . . Catastrophic 1 | . 1 . . . . Database Lockouts . | . . . . . . Manual . | . . . . . . Terminals 11 | . 7 . 3 1 . Fabricators . | . . . . . . Repair Stations 3 | . . . 3 . . Recycling Units 4 | . 3 . 1 . . Scanalyzers . | . . . . . . Garrison Access . | . . . . . . Terminal Hacks 7 | . 5 . 1 1 . Record 2 | . 2 . . . . Open DSF 1 | . . . . 1 . Alert Level 1 | . 1 . . . . Unreport Threat 1 | . 1 . . . . Dispatch Records 1 | . . . 1 . . Zone Layout 1 | . 1 . . . . Fabricator Hacks . | . . . . . . Repair Station Hacks 2 | . . . 2 . . Scan Component 1 | . . . 1 . . Repair 1 | . . . 1 . . Recycling Unit Hacks 1 | . . . 1 . . Retrieve Components 1 | . . . 1 . . Scanalyzer . | . . . . . . Garrison Access Hacks . | . . . . . . Unauthorized Hacks . | . . . . . . Terminals . | . . . . . . Fabricators . | . . . . . . Repair Stations . | . . . . . . Recycling Units . | . . . . . . Scanalyzers . | . . . . . . Garrison Access . | . . . . . . Data Cores Recovered . | . . . . . . Used . | . . . . . . Hacking Detections 5 | . 2 . 2 1 . Full Trace Events 2 | . 2 . . . . Feedback Events . | . . . . . . Feedback Blocked . | . . . . . . Robot Schematics Acquired . | . . . . . . Robots Built . | . . . . . . Authchips . | . . . . . . Time . | . . . . . . Total Robot Build Rating . | . . . . . . Part Schematics Acquired . | . . . . . . Parts Built . | . . . . . . Authchips . | . . . . . . Time . | . . . . . . Total Part Build Rating . | . . . . . . Part Studies Acquired . | . . . . . . Parts Repaired 1 | . . . 1 . . Time 32 | . . . 32 . . Parts Recycled . | . . . . . . Recycled Matter . | . . . . . . Retrieved Matter . | . . . . . . Retrieved Components 2 | . . . 2 . . Parts Scanalyzed . | . . . . . . Part Schematics Acquired . | . . . . . . Parts Damaged . | . . . . . . Bothacking | -11 -10 -10 -8 -7 -7 ------------ Run | Yrd Mat Sub Mat Fac DSF Used RIF Installer . | . . . . . . Robots Hacked . | . . . . . . Non-combat . | . . . . . . Combat . | . . . . . . Robot Hacks Applied . | . . . . . . Relay Couplers Released . | . . . . . . Fabnet Peak Effective % . | . . . . . . Robots Rewired . | . . . . . . Allies Hacked . | . . . . . . Hacks Repelled . | . . . . . . Allies | -11 -10 -10 -8 -7 -7 -------- Run | Yrd Mat Sub Mat Fac DSF Total Allies . | . . . . . . Largest Group . | . . . . . . Highest-Rated Group . | . . . . . . Highest-Rated Ally . | . . . . . . Total Orders . | . . . . . . Ally Attacks . | . . . . . . Total Damage . | . . . . . . Kills . | . . . . . . Allies Corrupted . | . . . . . . Allies Melted . | . . . . . . Intel | -11 -10 -10 -8 -7 -7 ------- Run | Yrd Mat Sub Mat Fac DSF Active Infowar (turns) 457 | 3 454 . . . . Terrain 457 | 3 454 . . . . Robot Analysis Total . | . . . . . . Derelict Logs Recovered . | . . . . . . Drone Launches . | . . . . . . Drone Recoveries . | . . . . . . Exploration | -11 -10 -10 -8 -7 -7 ------------- Run | Yrd Mat Sub Mat Fac DSF Turns Passed 3239 | 87 863 659 1457 54 119 Spaces Moved 1596 | 53 378 502 589 46 28 Core 49 | 17 4 4 21 . 3 Treads 404 | 36 368 . . . . Legs 16 | . . 16 . . . Wheels 1127 | . 6 482 568 46 25 Hover . | . . . . . . Flight . | . . . . . . Fastest Speed 50 | 50 95 95 110 110 110 Average Speed 162 | 124 185 111 193 110 268 Slowest Speed 1900 | 160 240 600 1900 110 1600 Overloaded Moves . | . . . . . . Propulsion Burnouts . | . . . . . . Robots Hopped . | . . . . . . Potential Cave-ins . | . . . . . . Cave-ins Triggered . | . . . . . . Exploration Rate (%) 28 | 4 52 42 36 2 36 Regions Visited 5 Branch Regions 1 Pre-discovered Areas . | . . . . . . Known Exits Taken 1 | . . . . 1 . Unknown Exits Taken 4 | 1 1 1 1 . . Scrap Searched 3 | . . 3 . . . Spaces Dug . | . . . . . . Terrain Destroyed 198 | . . 54 139 . 5 Melee . | . . . . . . Projectile 2 | . . . 2 . . AOE 196 | . . 54 137 . 5 Terrain Rammed . | . . . . . . Walls Destroyed . | . . . . . . Machines Disabled . | . . . . . . Actions | -11 -10 -10 -8 -7 -7 --------- Run | Yrd Mat Sub Mat Fac DSF Total 2000 | 70 468 570 791 49 52 Wait 52 | . 4 8 40 . . Move 1591 | 52 377 501 588 45 28 Hop . | . . . . . . Pick Up 76 | 9 18 13 34 1 1 Fast Attach 6 | . . 2 4 . . Attach 49 | 7 7 3 25 3 4 Detach 6 | . . . 6 . . Swap 29 | . 6 8 14 . 1 Drop 42 | . 10 14 18 . . Fire 141 | 2 43 16 62 . 18 Melee . | . . . . . . Ram . | . . . . . . Kick . | . . . . . . Crush 3 | . 3 . . . . Escape Stasis . | . . . . . . Rewire . | . . . . . . Trap . | . . . . . . Miscellaneous 5 | . . 5 . . . Route ------- -11/Scrapyard -10/Materials (discovered 4 exits: [*Mat] / [*Min x2] / [*Sub]) -10/Subcaves (discovered 3 exits: *Mat x2 / [*Rec]) -8/Materials -7/Factory -7/DSF History --------- Turn | Location | Event 32 | -11/Scrapyard | Discovered new exit (range 15) 88 | -11/Scrapyard | Entered Materials 201 | -10/Materials | Discovered new exit (range 4) 312 | -10/Materials | Build established: Mutant 393 | -10/Materials | Discovered new exit (range 6) 626 | -10/Materials | Discovered new exit (range 16) 688 | -10/Materials | Derelicts attacked the area 737 | -10/Materials | Core integrity fell below 50% 798 | -10/Materials | Discovered new exit (range 9) 951 | -10/Materials | Entered Subcaves 952 | -10/Subcaves | Approached by a straggling Scientist 1017 | -10/Subcaves | Shifting Twisted Machinery released Riot Gun 1110 | -10/Subcaves | Ambushed by swarm of Subdwellers 1146 | -10/Subcaves | Lost 3 allies 1262 | -10/Subcaves | Core integrity fell below 20% 1280 | -10/Subcaves | Discovered new exit (range 16) 1295 | -10/Subcaves | Discovered new exit (range 16) 1432 | -10/Subcaves | Build established: Subdweller-Mutant 1514 | -10/Subcaves | Discovered new exit (range 12) 1610 | -10/Subcaves | Entered Materials 1610 | -8/Materials | Evolved 4 slots: Power x1, Propulsion x1, Utility x2 1913 | -8/Materials | Repaired Sub. Shrapnel Launcher 1922 | -8/Materials | Build established: Scavenger-Mutant 2126 | -8/Materials | Discovered new exit (range 16) 2606 | -8/Materials | Build established: Mutant 3067 | -8/Materials | Entered Factory 3067 | -7/Factory | Evolved 2 slots: Propulsion x1, Weapon x1 3089 | -7/Factory | Identified exit to DSF 3121 | -7/Factory | Entered DSF 3147 | -7/DSF | Additional patrols routed to DSF 3195 | -7/DSF | Core integrity fell below 50% 3222 | -7/DSF | Core integrity fell below 20% 3240 | -7/DSF | Destroyed by H-55 Commando with Gauss Rifle Last Messages --------------- Penetrated by Slug. Imp. Deuterium Engine destroyed. Penetrated by Slug. Slug penetrates Wall. Penetrated by Slug. Mni. Grenade Launcher destroyed. Penetrated by Slug. Slug penetrates Wall. Penetrated by Slug. Hvy. Assault Rifle destroyed. Penetrated by Slug. Slug penetrates Wall. Triggered Stasis Trap. A bubble of rippling energy engulfs the area. Field strength at 94. Slug penetrates Wall. Penetrated by Slug. A-02 Transporter suffers critical hit (Destroy). A-02 Transporter destroyed. Penetrated by Slug. Map ----- +----------------------------------------------------+ | | | | | | | | | | | | | ???????????????????????????????????????????????? | | ???????????????????????????????????????????????? | | ???????????????????????????????????????????????? | | ?????????##????????????????????????????????????? | | ?????????""#???????????????????????????????????? | | ?????????#"#??????????###??????????????????????? | | ??????####"##???????###;#####??????????????????? | | ??????#"""""#########[[ #??????????????????? | | ??????#"""""##!!# !!#[[ #??????????????????? | | ??????#"" % #??????????????????? | | ????""""" #??????????????????? | | ????###"" ##!!# ### %###??????????????????? | | ??????### ###!!# ### % ;##??????????????????? | | ????????# #?######## %% #??????????????????? | | ???????#! ????????# #??????????????????? | | ???????#! ????????# #??????????????????? | | ???????## ##???????##; ###??????????????????? | | ????????! !????????#!! !!#??????????????????? | | ????????! !????????#!! !#??????????????????? | | ????????! !????????#!!@ =!!#??????????????????? | | ???????## #????????## ! ###??????????????????? | | ????????! #?????????## [x #???????????????????? | | ????????! ???????????%!= ! #??????????????????? | | ???????? ???????????=!h a ?????????????????? | | ???????? ??????????? !%! ????????????????? | | ?????????????????????? = ??????????????? | | ?????????????????????#a a# !!!# ?????????????? | | ?????????????????????## ###!!!#? ????????????? | | ??????????????????????? #??####??#???????????? | | ??????????????????????? !????????????????????? | | ??????????????????????? !????????????????????? | | ??????????????????????? !????????????????????? | | ??????????????????????? #????????????????????? | | ??????????????????????? ????????????????????? | | ??????????????????????? ?????????????????????? | | ???????????????????????????????????????????????? | | ???????????????????????????????????????????????? | | ???????????????????????????????????????????????? | | ???????????????????????????????????????????????? | | ???????????????????????????????????????????????? | | ???????????????????????????????????????????????? | | ???????????????????????????????????????????????? | | ???????????????????????????????????????????????? | | ???????????????????????????????????????????????? | +----------------------------------------------------+ Best States ------------- Heat Dissipation 45 Energy Generation 27 Energy Capacity 480 Matter Stores 363 Matter Capacity 450 Sight Range 16 Terrain Scan Range 16 Terrain Scan Density 10 Armor Coverage 800 Phase Shifting 5 Evasion (%) 50 Recoil Reduction 2 Offensive Hacking 10 Defensive Hacking 10 Item Schematics ----------------- None Robot Schematics ------------------ None Fabricated ------------ Nothing Repaired ---------- Sub. Shrapnel Launcher | 24% | -8/Materials Studied --------- None Alien Tech Used ----------------- None Achievements -------------- Close Call Survival Of The Most Covered Challenges ------------ None Game ------ Seed MetamassPlexusPropulsion Manual? 0 Play Time 00:59:11 Cumulative 5.4 hours Start 2025.12.17 @ 12:18:21 End 2025.12.21 @ 11:57:08 Sessions 1 Manual Loads 0 Difficulty Rogue Special Mode None Game No. 11 Rogue 11 Adventurer 0 Explorer 0 Win Type - Total 0 Types 0/0/0/0/0/0/0/0/0/0 Lore% 6 Gallery% 12 Achievement% 11 Wizard Run 0 Options --------- Layout 1 ASCII 0 Keyboard 0 Movement Mouse Keybinds 0 Fullscreen 1 Font 16/SmallcapsGlow Map View 25x17 Zoom Use 99% Tactical HUD 0 Map Filters NONE Filters NONE Steam 1 RUN: 17d431a1-c498-4d20-a2de-8829920193bc